[Event "Rapid Tournament (RAP)"]
[Site "Biel, Switzerland"]
[Date "2026.07.12"]
[Round "7.35"]
[White "Labrovic, Jakov"]
[Black "Fortier, Nicolas"]
[Result "1-0"]
[TimeControl "15 + 5"]
[WhiteTitle "-"]
[BlackTitle "-"]
[WhiteFideId "14549786"]
[BlackFideId "1308750"]
[WhiteElo "2005"]
[BlackElo "1810"]

1. e4 {[%clk 00:15:02]} {[%emt 00:00:07]} e5 {[%clk 00:15:08]} {[%emt
00:00:02]} 2. Nf3 {[%clk 00:15:05]} {[%emt 00:00:01]} Nc6 {[%clk 00:15:11]}
{[%emt 00:00:04]} 3. Bb5 {[%clk 00:15:09]} a6 {[%clk 00:15:14]} {[%emt
00:00:02]} 4. Ba4 {[%clk 00:15:13]} Nf6 {[%clk 00:15:16]} {[%emt 00:00:05]} 5.
O-O {[%clk 00:15:16]} Nxe4 {[%clk 00:15:18]} {[%emt 00:00:03]} 6. Re1 {[%clk
00:15:20]} {[%emt 00:00:01]} Nc5 {[%clk 00:15:19]} {[%emt 00:00:03]} 7. Nxe5
{[%clk 00:15:19]} {[%emt 00:00:06]} Nxe5 {[%clk 00:14:59]} {[%emt 00:00:25]} 8.
Rxe5+ {[%clk 00:15:22]} {[%emt 00:00:02]} Ne6 {[%clk 00:14:48]} {[%emt
00:00:17]} 9. d4 {[%clk 00:15:18]} {[%emt 00:00:09]} Be7 {[%clk 00:13:18]}
{[%emt 00:01:35]} 10. d5 {[%clk 00:13:49]} {[%emt 00:01:33]} Nc5 {[%clk
00:13:13]} {[%emt 00:00:10]} 11. c4 {[%clk 00:13:51]} {[%emt 00:00:03]} O-O
{[%clk 00:12:21]} {[%emt 00:00:58]} 12. Bc2 {[%clk 00:13:49]} {[%emt 00:00:06]}
g6 {[%clk 00:12:10]} {[%emt 00:00:16]} 13. Nc3 {[%clk 00:12:49]} {[%emt
00:01:05]} d6 {[%clk 00:12:01]} {[%emt 00:00:15]} 14. Re1 {[%clk 00:11:55]}
{[%emt 00:00:58]} Bf6 {[%clk 00:11:44]} {[%emt 00:00:22]} 15. Bd2 {[%clk
00:11:25]} {[%emt 00:00:34]} Bd7 {[%clk 00:11:14]} {[%emt 00:00:36]} 16. b4
{[%clk 00:11:23]} {[%emt 00:00:08]} b5 {[%clk 00:10:11]} {[%emt 00:01:08]} 17.
bxc5 {[%clk 00:11:08]} {[%emt 00:00:20]} b4 {[%clk 00:10:08]} {[%emt 00:00:07]}
18. c6 {[%clk 00:10:55]} {[%emt 00:00:18]} bxc3 {[%clk 00:10:08]} {[%emt
00:00:06]} 19. Bh6 {[%clk 00:10:58]} {[%emt 00:00:02]} Re8 {[%clk 00:09:55]}
{[%emt 00:00:18]} 20. cxd7 {[%clk 00:10:59]} {[%emt 00:00:03]} Qxd7 {[%clk
00:09:55]} {[%emt 00:00:06]} 21. Qd3 {[%clk 00:10:39]} {[%emt 00:00:24]} Qg4
{[%emt 00:02:02]} 22. Re4 {[%clk 00:09:04]} Rxe4 {[%clk 00:09:29]} {[%emt
00:00:14]} 23. Qxe4 {[%clk 00:09:06]} {[%emt 00:00:02]} Qh5 {[%clk 00:09:22]}
{[%emt 00:00:13]} 24. Bf4 {[%clk 00:08:39]} {[%emt 00:00:31]} Rb8 {[%clk
00:09:12]} {[%emt 00:00:15]} 25. Re1 {[%clk 00:08:26]} {[%emt 00:00:17]} Rb2
{[%clk 00:08:47]} {[%emt 00:00:32]} 26. a4 {[%clk 00:07:52]} {[%emt 00:00:38]}
Rb4 {[%clk 00:08:15]} {[%emt 00:00:38]} 27. Qd3 {[%clk 00:06:53]} {[%emt
00:01:03]} Qg4 {[%clk 00:07:53]} {[%emt 00:00:27]} 28. Bh6 {[%clk 00:06:33]}
{[%emt 00:00:24]} Qd7 {[%clk 00:07:44]} {[%emt 00:00:16]} 29. Qe4 {[%clk
00:06:01]} {[%emt 00:00:37]} Rb8 {[%clk 00:07:40]} {[%emt 00:00:10]} 30. f4
{[%clk 00:05:26]} {[%emt 00:00:39]} Bh8 {[%clk 00:07:07]} {[%emt 00:00:39]} 31.
f5 {[%clk 00:05:05]} {[%emt 00:00:25]} Bf6 {[%clk 00:06:16]} {[%emt 00:00:56]}
32. fxg6 {[%clk 00:04:38]} {[%emt 00:00:33]} hxg6 {[%clk 00:06:17]} {[%emt
00:00:03]} 33. Qf4 {[%clk 00:04:24]} {[%emt 00:00:18]} Bh8 {[%clk 00:05:21]}
{[%emt 00:01:03]} 34. Bg5 {[%clk 00:03:31]} {[%emt 00:00:57]} Re8 {[%clk
00:04:45]} {[%emt 00:00:41]} 35. Rxe8+ {[%clk 00:03:16]} {[%emt 00:00:20]} Qxe8
{[%clk 00:04:48]} {[%emt 00:00:02]} 36. Qe4 {[%clk 00:03:18]} {[%emt 00:00:02]}
Qd7 {[%clk 00:04:25]} {[%emt 00:00:30]} 37. Be3 {[%clk 00:03:18]} {[%emt
00:00:05]} Be5 {[%clk 00:04:11]} {[%emt 00:00:19]} 38. Bd4 {[%clk 00:03:08]}
{[%emt 00:00:14]} f5 {[%clk 00:04:00]} {[%emt 00:00:16]} 39. Qe3 {[%emt
00:00:27]} 1-0

[Event "Rapid Tournament (RAP)"]
[Site "Biel, Switzerland"]
[Date "2026.07.12"]
[Round "7.36"]
[White "Lopez, Manuel"]
[Black "Arocha, Carlos"]
[Result "1-0"]
[TimeControl "15 + 5"]
[WhiteTitle "-"]
[BlackTitle "-"]
[WhiteFideId "1306324"]
[BlackFideId "1311590"]
[WhiteElo "1916"]
[BlackElo "1807"]

1. e4 {[%clk 00:15:09]} g6 {[%clk 00:15:09]} 2. d4 {[%clk 00:15:11]} {[%emt
00:00:03]} Bg7 {[%clk 00:15:13]} 3. Nc3 {[%emt 00:00:07]} d6 4. f3 {[%clk
00:15:03]} {[%emt 00:00:07]} Nf6 {[%clk 00:15:16]} {[%emt 00:00:01]} 5. Be3
{[%clk 00:15:06]} {[%emt 00:00:02]} O-O {[%clk 00:15:18]} {[%emt 00:00:03]} 6.
Qd2 {[%clk 00:15:09]} {[%emt 00:00:03]} a6 {[%clk 00:15:18]} {[%emt 00:00:04]}
7. h4 {[%clk 00:15:12]} {[%emt 00:00:02]} h5 {[%clk 00:15:17]} {[%emt
00:00:05]} 8. Bh6 {[%clk 00:14:59]} {[%emt 00:00:19]} b5 {[%clk 00:15:12]}
{[%emt 00:00:11]} 9. Bxg7 {[%clk 00:15:01]} {[%emt 00:00:02]} Kxg7 {[%clk
00:15:15]} {[%emt 00:00:02]} 10. Bd3 {[%clk 00:14:41]} {[%emt 00:00:25]} Nbd7
{[%clk 00:15:03]} {[%emt 00:00:18]} 11. Nh3 {[%clk 00:14:40]} {[%emt 00:00:06]}
c5 {[%clk 00:15:05]} {[%emt 00:00:02]} 12. d5 {[%clk 00:14:31]} {[%emt
00:00:14]} c4 {[%clk 00:15:07]} {[%emt 00:00:04]} 13. Be2 {[%clk 00:14:34]}
{[%emt 00:00:01]} Ne5 {[%clk 00:14:49]} {[%emt 00:00:22]} 14. Ng5 {[%clk
00:14:30]} {[%emt 00:00:10]} b4 {[%clk 00:14:24]} {[%emt 00:00:31]} 15. Nd1
{[%clk 00:14:33]} {[%emt 00:00:02]} a5 {[%clk 00:14:26]} {[%emt 00:00:02]} 16.
Ne3 {[%clk 00:14:16]} {[%emt 00:00:21]} Qc7 {[%clk 00:14:19]} {[%emt 00:00:12]}
17. c3 {[%clk 00:13:58]} {[%emt 00:00:24]} Rb8 {[%clk 00:13:17]} {[%emt
00:01:07]} 18. O-O {[%clk 00:13:49]} {[%emt 00:00:15]} Bd7 {[%clk 00:13:03]}
{[%emt 00:00:17]} 19. Kh1 {[%clk 00:13:49]} {[%emt 00:00:05]} Rb7 {[%clk
00:12:46]} {[%emt 00:00:23]} 20. Rac1 {[%clk 00:12:43]} {[%emt 00:01:11]} Rfb8
{[%clk 00:12:28]} {[%emt 00:00:24]} 21. f4 {[%clk 00:11:55]} {[%emt 00:00:52]}
Neg4 {[%clk 00:12:21]} {[%emt 00:00:11]} 22. Nxg4 {[%clk 00:11:33]} {[%emt
00:00:28]} Bxg4 {[%clk 00:12:10]} {[%emt 00:00:17]} 23. Bxg4 {[%clk 00:11:36]}
{[%emt 00:00:02]} Nxg4 {[%clk 00:12:12]} {[%emt 00:00:02]} 24. Qd4+ {[%clk
00:11:33]} {[%emt 00:00:09]} Kg8 {[%clk 00:12:04]} {[%emt 00:00:12]} 25. f5
{[%clk 00:11:04]} {[%emt 00:00:34]} Qc5 {[%clk 00:11:56]} {[%emt 00:00:13]} 26.
fxg6 {[%clk 00:10:39]} {[%emt 00:00:30]} Qxd4 {[%clk 00:11:10]} {[%emt
00:00:51]} 27. gxf7+ {[%clk 00:10:41]} {[%emt 00:00:03]} Kh8 {[%clk 00:10:01]}
{[%emt 00:01:14]} 28. cxd4 {[%clk 00:10:37]} {[%emt 00:00:10]} Nf6 {[%clk
00:09:42]} {[%emt 00:00:23]} 29. Ne6 {[%clk 00:10:16]} {[%emt 00:00:26]} Rc8
{[%clk 00:09:26]} {[%emt 00:00:22]} 30. f8=Q+ {[%clk 00:10:05]} {[%emt
00:00:16]} Rxf8 {[%clk 00:09:30]} 31. Nxf8 {[%clk 00:10:08]} {[%emt 00:00:02]}
Nxe4 {[%clk 00:09:24]} {[%emt 00:00:10]} 32. Kh2 {[%clk 00:09:41]} {[%emt
00:00:32]} Rc7 {[%clk 00:09:16]} {[%emt 00:00:13]} 33. Ne6 {[%clk 00:09:44]}
{[%emt 00:00:02]} Rc8 {[%clk 00:09:15]} {[%emt 00:00:05]} 34. Rf8+ {[%clk
00:09:22]} {[%emt 00:00:28]} Rxf8 {[%clk 00:09:12]} {[%emt 00:00:09]} 35. Nxf8
{[%clk 00:09:25]} {[%emt 00:00:01]} c3 {[%clk 00:09:12]} {[%emt 00:00:06]} 36.
bxc3 {[%clk 00:09:28]} {[%emt 00:00:02]} bxc3 {[%clk 00:09:15]} 37. Ng6+ {[%clk
00:09:28]} {[%emt 00:00:05]} Kg7 {[%clk 00:09:16]} {[%emt 00:00:04]} 38. Nxe7
{[%clk 00:09:31]} {[%emt 00:00:02]} Kf6 {[%clk 00:09:13]} {[%emt 00:00:08]} 39.
Nc6 {[%clk 00:09:33]} {[%emt 00:00:04]} a4 {[%clk 00:09:11]} {[%emt 00:00:08]}
40. g3 {[%clk 00:09:22]} {[%emt 00:00:15]} Kf5 {[%clk 00:09:00]} {[%emt
00:00:16]} 41. Rf1+ {[%clk 00:09:03]} {[%emt 00:00:23]} Kg6 {[%clk 00:08:53]}
{[%emt 00:00:12]} 42. Nb4 {[%clk 00:09:04]} {[%emt 00:00:05]} Nf6 {[%clk
00:08:49]} {[%emt 00:00:08]} 43. Rxf6+ {[%clk 00:08:57]} {[%emt 00:00:12]} Kxf6
{[%clk 00:08:54]} 44. Kg2 {[%clk 00:09:00]} {[%emt 00:00:02]} Kf5 {[%clk
00:08:58]} 45. Kf3 {[%clk 00:09:04]} {[%emt 00:00:01]} a3 {[%clk 00:09:01]}
{[%emt 00:00:02]} 46. Nc2 {[%clk 00:09:08]} {[%emt 00:00:02]} Kf6 {[%clk
00:09:02]} {[%emt 00:00:04]} 47. Nxa3 {[%clk 00:09:09]} {[%emt 00:00:04]} Kf5
{[%clk 00:09:06]} {[%emt 00:00:01]} 48. Nc2 {[%clk 00:09:13]} Kf6 {[%clk
00:09:10]} {[%emt 00:00:01]} 49. a4 {[%clk 00:09:16]} {[%emt 00:00:02]} 1-0

[Event "Rapid Tournament (RAP)"]
[Site "Biel, Switzerland"]
[Date "2026.07.12"]
[Round "7.37"]
[White "Materia, Mario"]
[Black "Alrefae, Ahmad"]
[Result "0-1"]
[TimeControl "15 + 5"]
[WhiteTitle "-"]
[BlackTitle "-"]
[WhiteFideId "651082241"]
[BlackFideId "10306510"]
[WhiteElo "1914"]
[BlackElo "1797"]

1. d4 {[%clk 00:15:05]} f5 {[%clk 00:15:05]} 2. Nf3 {[%clk 00:15:05]} e6 {[%clk
00:15:05]} 3. c4 {[%clk 00:15:05]} Nf6 {[%clk 00:15:12]} {[%emt 00:00:17]} 4.
h3 {[%clk 00:15:07]} {[%emt 01:40:09]} b6 {[%clk 00:15:20]} 5. Bf4 {[%clk
00:15:07]} Bb7 {[%clk 00:15:20]} 6. e3 {[%clk 00:15:07]} Bd6 {[%clk 00:15:20]}
7. Bxd6 {[%clk 00:15:07]} cxd6 {[%clk 00:15:20]} 8. Nc3 {[%clk 00:15:07]} O-O
{[%clk 00:15:20]} 9. Bd3 {[%clk 00:15:07]} d5 {[%clk 00:15:20]} 10. cxd5 {[%clk
00:15:07]} Nxd5 {[%clk 00:15:20]} 11. O-O {[%clk 00:15:07]} Nf6 {[%clk
00:15:20]} 12. Rc1 {[%clk 00:15:07]} Nc6 {[%clk 00:15:20]} 13. a3 {[%clk
00:15:07]} Ne7 {[%clk 00:15:20]} 14. Ne5 {[%clk 00:13:16]} {[%emt 00:04:51]}
Ng6 {[%clk 00:13:34]} 15. Qb3 {[%clk 00:10:15]} {[%emt 00:03:35]} Nh4 {[%clk
00:13:20]} 16. f3 {[%clk 00:10:01]} {[%emt 00:00:38]} Nh5 {[%clk 00:13:19]} 17.
Ne2 {[%clk 00:09:55]} {[%emt 00:00:17]} 0-1

[Event "Rapid Tournament (RAP)"]
[Site "Biel, Switzerland"]
[Date "2026.07.12"]
[Round "7.38"]
[White "Duric, Ivan"]
[Black "Ivarsson, Anders"]
[Result "0-1"]
[TimeControl "15 + 5"]
[WhiteTitle "-"]
[BlackTitle "-"]
[WhiteFideId "1358138"]
[BlackFideId "1768158"]
[WhiteElo "1832"]
[BlackElo "1907"]

1. d4 {[%clk 00:14:47]} {[%emt 00:00:22]} Nf6 {[%clk 00:15:09]} {[%emt
00:00:01]} 2. c4 {[%clk 00:14:49]} {[%emt 00:00:03]} e6 {[%clk 00:15:13]}
{[%emt 00:00:02]} 3. Nc3 {[%clk 00:14:53]} {[%emt 00:00:01]} Bb4 {[%clk
00:15:16]} {[%emt 00:00:01]} 4. Qc2 {[%clk 00:14:56]} {[%emt 00:00:02]} b6
{[%clk 00:15:13]} {[%emt 00:00:07]} 5. e4 {[%clk 00:14:54]} {[%emt 00:00:08]}
Bb7 {[%clk 00:14:56]} {[%emt 00:00:22]} 6. Bd3 {[%clk 00:14:52]} {[%emt
00:00:07]} d5 {[%clk 00:13:15]} {[%emt 00:01:46]} 7. cxd5 {[%clk 00:13:14]}
{[%emt 00:01:43]} exd5 {[%clk 00:13:11]} {[%emt 00:00:09]} 8. e5 {[%clk
00:13:08]} {[%emt 00:00:12]} Ne4 {[%clk 00:13:07]} {[%emt 00:00:09]} 9. Nge2
{[%clk 00:12:24]} {[%emt 00:00:49]} O-O {[%clk 00:12:40]} {[%emt 00:00:32]} 10.
O-O {[%clk 00:12:26]} {[%emt 00:00:03]} Bxc3 {[%clk 00:12:03]} {[%emt
00:00:42]} 11. bxc3 {[%clk 00:12:25]} {[%emt 00:00:05]} c5 {[%clk 00:10:48]}
{[%emt 00:01:20]} 12. Bxe4 {[%clk 00:09:50]} {[%emt 00:02:40]} dxe4 {[%clk
00:10:51]} {[%emt 00:00:02]} 13. dxc5 {[%clk 00:07:24]} {[%emt 00:02:31]} bxc5
{[%clk 00:10:48]} {[%emt 00:00:08]} 14. Ng3 {[%clk 00:07:19]} {[%emt 00:00:11]}
Qd5 {[%clk 00:10:20]} {[%emt 00:00:33]} 15. c4 {[%clk 00:06:06]} {[%emt
00:01:18]} Qxe5 {[%clk 00:10:13]} {[%emt 00:00:12]} 16. Bb2 {[%clk 00:06:09]}
{[%emt 00:00:01]} Qe6 {[%clk 00:09:41]} {[%emt 00:00:36]} 17. Rfe1 {[%clk
00:05:48]} {[%emt 00:00:27]} f5 {[%clk 00:09:14]} {[%emt 00:00:33]} 18. Rab1
{[%clk 00:05:28]} {[%emt 00:00:24]} Ba6 {[%clk 00:08:48]} {[%emt 00:00:31]} 19.
Qc3 {[%clk 00:03:27]} {[%emt 00:02:06]} Rf7 {[%clk 00:08:37]} {[%emt 00:00:16]}
20. Rbc1 {[%clk 00:03:02]} {[%emt 00:00:31]} Nc6 {[%clk 00:08:32]} {[%emt
00:00:09]} 21. Nh5 {[%clk 00:02:59]} {[%emt 00:00:08]} Nd4 {[%clk 00:08:29]}
{[%emt 00:00:09]} 22. Nf4 {[%clk 00:02:59]} {[%emt 00:00:04]} Qh6 {[%clk
00:07:49]} {[%emt 00:00:45]} 23. Qg3 {[%clk 00:02:11]} {[%emt 00:00:52]} Rd8
{[%clk 00:07:16]} {[%emt 00:00:39]} 24. f3 {[%clk 00:01:29]} {[%emt 00:00:47]}
Qb6 {[%clk 00:06:36]} {[%emt 00:00:45]} 25. Ba1 {[%clk 00:01:18]} {[%emt
00:00:16]} exf3 {[%clk 00:06:22]} {[%emt 00:00:19]} 26. Bxd4 {[%clk 00:01:17]}
{[%emt 00:00:07]} cxd4 {[%clk 00:06:18]} {[%emt 00:00:08]} 27. Qxf3 {[%clk
00:01:01]} {[%emt 00:00:21]} d3+ {[%clk 00:06:15]} {[%emt 00:00:08]} 28. Kh1
{[%clk 00:01:05]} {[%emt 00:00:02]} d2 {[%clk 00:06:17]} {[%emt 00:00:02]} 29.
Qe2 {[%clk 00:00:15]} {[%emt 00:00:54]} dxc1=Q {[%emt 00:00:22]} 30. Rxc1
{[%clk 00:00:19]} {[%emt 00:00:01]} Qd6 {[%clk 00:05:31]} {[%emt 00:00:35]} 31.
Qf1 {[%clk 00:00:07]} {[%emt 00:00:17]} Bb7 {[%clk 00:05:17]} {[%emt 00:00:19]}
32. Ne2 {[%clk 00:00:07]} {[%emt 00:00:05]} f4 {[%clk 00:04:43]} {[%emt
00:00:39]} 33. c5 {[%clk 00:00:06]} {[%emt 00:00:07]} Qd2 {[%clk 00:04:33]}
{[%emt 00:00:13]} 34. Ng1 {[%clk 00:00:07]} {[%emt 00:00:04]} f3 {[%clk
00:04:20]} {[%emt 00:00:19]} 35. gxf3 {[%clk 00:00:08]} {[%emt 00:00:04]} Qe3
{[%clk 00:04:01]} {[%emt 00:00:24]} 36. c6 {[%clk 00:00:11]} {[%emt 00:00:02]}
Bc8 {[%clk 00:03:49]} {[%emt 00:00:17]} 37. Re1 {[%clk 00:00:13]} {[%emt
00:00:03]} Qc5 {[%clk 00:03:40]} {[%emt 00:00:12]} 38. Rc1 {[%clk 00:00:15]}
{[%emt 00:00:05]} Qf8 {[%clk 00:03:09]} {[%emt 00:00:36]} 39. c7 {[%clk
00:00:16]} {[%emt 00:00:05]} Rd2 {[%clk 00:02:16]} {[%emt 00:00:57]} 40. Qc4
{[%clk 00:00:17]} {[%emt 00:00:05]} Kh8 {[%clk 00:02:10]} {[%emt 00:00:11]} 41.
Qc3 {[%clk 00:00:14]} {[%emt 00:00:08]} Qd6 {[%clk 00:02:04]} {[%emt 00:00:10]}
42. Re1 {[%clk 00:00:15]} {[%emt 00:00:05]} Qxh2# {[%clk 00:02:05]} {[%emt
00:00:03]} 0-1

[Event "Rapid Tournament (RAP)"]
[Site "Biel, Switzerland"]
[Date "2026.07.12"]
[Round "7.39"]
[White "Alsaqer, Meshal"]
[Black "Paholok, Igor"]
[Result "1-0"]
[TimeControl "15 + 5"]
[WhiteTitle "-"]
[BlackTitle "-"]
[WhiteFideId "10301771"]
[BlackFideId "1338951"]
[WhiteElo "1903"]
[BlackElo "1784"]

1. d4 {[%clk 00:15:09]} g6 {[%clk 00:14:52]} {[%emt 00:00:19]} 2. Nf3 {[%clk
00:15:07]} {[%emt 00:00:07]} Bg7 {[%clk 00:14:57]} 3. Bf4 {[%clk 00:15:07]}
{[%emt 00:00:05]} d6 {[%clk 00:15:01]} 4. e3 {[%clk 00:15:08]} {[%emt
00:00:04]} Nf6 {[%clk 00:14:59]} {[%emt 00:00:07]} 5. h3 {[%clk 00:15:04]}
{[%emt 00:00:09]} O-O {[%clk 00:14:56]} {[%emt 00:00:08]} 6. Be2 {[%clk
00:15:05]} {[%emt 00:00:03]} b6 {[%clk 00:13:58]} {[%emt 00:01:04]} 7. O-O
{[%clk 00:14:51]} {[%emt 00:00:19]} Bb7 {[%clk 00:14:01]} {[%emt 00:00:02]} 8.
c3 {[%clk 00:14:46]} {[%emt 00:00:09]} Nbd7 {[%clk 00:14:04]} {[%emt 00:00:02]}
9. a4 {[%clk 00:14:48]} {[%emt 00:00:04]} c5 {[%clk 00:14:08]} {[%emt
00:00:01]} 10. Re1 {[%clk 00:14:46]} {[%emt 00:00:07]} Nh5 {[%clk 00:14:01]}
{[%emt 00:00:12]} 11. Bh2 {[%clk 00:14:47]} {[%emt 00:00:04]} f5 {[%clk
00:14:05]} 12. Ng5 {[%clk 00:14:37]} {[%emt 00:00:16]} Rf6 {[%clk 00:13:18]}
{[%emt 00:00:51]} 13. Bxh5 {[%clk 00:14:02]} {[%emt 00:00:40]} gxh5 {[%clk
00:13:06]} {[%emt 00:00:16]} 14. Qb3+ {[%clk 00:13:46]} {[%emt 00:00:22]} d5
{[%clk 00:12:26]} {[%emt 00:00:46]} 15. Nf3 {[%clk 00:13:27]} {[%emt 00:00:22]}
c4 {[%clk 00:11:24]} {[%emt 00:01:08]} 16. Qc2 {[%clk 00:13:06]} {[%emt
00:00:26]} e6 {[%clk 00:11:26]} {[%emt 00:00:03]} 17. Nbd2 {[%clk 00:12:49]}
{[%emt 00:00:22]} Rg6 {[%clk 00:10:52]} {[%emt 00:00:39]} 18. b3 {[%clk
00:11:52]} {[%emt 00:01:02]} Rc8 {[%clk 00:10:35]} {[%emt 00:00:22]} 19. Kh1
{[%clk 00:11:20]} {[%emt 00:00:37]} Kh8 {[%clk 00:10:38]} {[%emt 00:00:01]} 20.
b4 {[%clk 00:10:57]} {[%emt 00:00:29]} Bf6 {[%clk 00:10:39]} {[%emt 00:00:04]}
21. b5 {[%clk 00:10:42]} {[%emt 00:00:20]} Qe7 {[%clk 00:10:37]} {[%emt
00:00:07]} 22. a5 {[%clk 00:10:39]} {[%emt 00:00:08]} Rcg8 {[%clk 00:10:27]}
{[%emt 00:00:14]} 23. Rg1 {[%clk 00:10:31]} {[%emt 00:00:13]} Qg7 {[%clk
00:09:54]} {[%emt 00:00:39]} 24. axb6 {[%clk 00:09:47]} {[%emt 00:00:49]} axb6
{[%clk 00:09:47]} {[%emt 00:00:12]} 25. g3 {[%clk 00:09:32]} {[%emt 00:00:20]}
e5 {[%clk 00:08:42]} {[%emt 00:01:10]} 26. Qxf5 {[%clk 00:09:06]} {[%emt
00:00:31]} exd4 {[%clk 00:07:43]} {[%emt 00:01:03]} 27. exd4 {[%clk 00:09:03]}
{[%emt 00:00:09]} Bc8 {[%emt 00:00:31]} 28. Ra8 {[%clk 00:08:37]} Nb8 {[%clk
00:07:20]} {[%emt 00:00:32]} 29. Qf4 {[%clk 00:07:34]} {[%emt 00:01:07]} Bxh3
{[%clk 00:05:27]} {[%emt 00:01:58]} 30. Rxb8 {[%clk 00:07:27]} {[%emt
00:00:13]} h4 {[%clk 00:05:28]} {[%emt 00:00:04]} 31. Rxg8+ {[%clk 00:07:29]}
{[%emt 00:00:03]} Qxg8 {[%clk 00:05:31]} {[%emt 00:00:02]} 32. Nxh4 {[%clk
00:07:16]} {[%emt 00:00:18]} Bxh4 {[%clk 00:05:20]} {[%emt 00:00:16]} 33. Qxh4
{[%clk 00:07:18]} {[%emt 00:00:03]} Bg4 {[%clk 00:04:22]} {[%emt 00:01:02]} 34.
f3 {[%clk 00:06:45]} {[%emt 00:00:39]} Bf5 {[%clk 00:02:49]} {[%emt 00:01:38]}
35. g4 {[%clk 00:06:45]} {[%emt 00:00:05]} Bd3 {[%clk 00:02:36]} {[%emt
00:00:17]} 36. Be5+ {[%clk 00:06:46]} {[%emt 00:00:04]} Rg7 {[%clk 00:02:35]}
{[%emt 00:00:06]} 37. Qf6 {[%clk 00:06:32]} {[%emt 00:00:19]} Qf7 {[%clk
00:02:33]} {[%emt 00:00:07]} 38. Qxf7 {[%clk 00:06:26]} {[%emt 00:00:12]} 1-0